{"text_format":"1","workbook":"xlsx","n_sheets":10,"sheets":["Liste CD64","1-Points clés","2-Présentation de la structure ","Carte","3-Saisie des comptes passés","4-Saisie comptes prévisionnels","5-Impact COVID19","Plan de trésorerie","Synthèse","Liste FAA"],"not_rendered":{"charts":10,"images":2,"macros":0,"external_links":6,"defined_names":20,"comments":6,"pivot_tables":0},"unopened":[],"bounds":{"document_bytes":16777216,"sheet_cells":100000,"rows_first":2000,"rows_last":500,"rows_between":2000,"halvings":0,"cell_chars":16384,"cell_head_chars":4096},"cells_cut":0,"cells_raw":0,"read":"whole","date_system":"1900"}

{"sheet":"Liste CD64","index":0,"n_rows":27,"n_cols":18,"rows_kept":27,"cut":false,"hidden":true,"merged":[]}
["Madame ","à 3 mois ","Oui","Propriétaire",null,null,null,null,null,"Culture",null,null,null,"1","Anglet",null,null,"Aquis"]
["Monsieur","à 6 mois ","Non","Locataire auprès d'un bailleur privé",null,null,null,null,null,"Sport",null,null,null,"2","Artix et Pays de Soubestre",null,null,"En cours "]
[null,"à 1 ans ",null,"Hébergé dans un local mis à disposition par la commune",null,null,null,null,null,"Solidarités",null,null,null,"3","Baïgura et Mondarrain",null,null,"Refusé"]
[null,"à 2 ans ",null,"Hébergé dans un local mis à dispostion par une collectivité/ un organisme public",null,null,null,null,null,"Education",null,null,null,"4","Bayonne-1"]
[null,"Pas de risque de rupture",null,"Autre",null,null,null,null,null,"Environnement et développement durable",null,null,null,"5","Bayonne-2"]
[null,"Indeterminé",null,null,null,null,null,null,null,"Agriculture",null,null,null,"6","Bayonne-3"]
[null,null,null,null,null,null,null,null,null,"Jeunesse et citoyenneté ",null,null,null,"7","Biarritz"]
[null,null,null,null,null,null,null,null,null,"Coopération et développement territorial ",null,null,null,"8","Billère et Coteaux de Jurançon"]
[null,null,null,null,null,null,null,null,null,"Déplacements",null,null,null,"9","Coeur de Béarn"]
[null,null,null,null,null,null,null,null,null,"Autres",null,null,null,"10","Hendaye-Côte Basque Sud"]
[null,null,null,null,null,null,null,null,null,null,null,null,null,"11","Lescar, Gave et Terres du Pont-Long"]
[null,null,null,null,null,null,null,null,null,null,null,null,null,"12","Montagne Basque"]
[null,null,null,null,null,null,null,null,null,null,null,null,null,"13","Nive-Adour"]
[null,null,null,null,null,null,null,null,null,null,null,null,null,"14","Oloron-Sainte-Marie-1"]
[null,null,null,null,null,null,null,null,null,null,null,null,null,"15","Oloron-Sainte-Marie-2"]
[null,null,null,null,null,null,null,null,null,null,null,null,null,"16","Orthez et Terres des Gaves et du Sel"]
[null,null,null,null,null,null,null,null,null,null,null,null,null,"17","Ouzom, Gave et Rives du Neez"]
[null,null,null,null,null,null,null,null,null,null,null,null,null,"18","Pau-1"]
[null,null,null,null,null,null,null,null,null,null,null,null,null,"19","Pau-2"]
[null,null,null,null,null,null,null,null,null,null,null,null,null,"20","Pau-3"]
[null,null,null,null,null,null,null,null,null,null,null,null,null,"21","Pau-4"]
[null,null,null,null,null,null,null,null,null,null,null,null,null,"22","Pays de Bidache, Amikuze et Ostibarre"]
[null,null,null,null,null,null,null,null,null,null,null,null,null,"23","Pays de Morlaàs et du Montanérès"]
[null,null,null,null,null,null,null,null,null,null,null,null,null,"24","Saint-Jean-de-Luz"]
[null,null,null,null,null,null,null,null,null,null,null,null,null,"25","Terres des Luys et Coteaux du Vic-Bilh"]
[null,null,null,null,null,null,null,null,null,null,null,null,null,"26","Ustaritz-Vallées de Nive et Nivelle"]
[null,null,null,null,null,null,null,null,null,null,null,null,null,"27","Vallées de l'Ousse et du Lagoin"]

{"sheet":"1-Points clés","index":1,"n_rows":0,"n_cols":0,"rows_kept":0,"cut":false,"hidden":false,"merged":[]}

{"sheet":"2-Présentation de la structure ","index":2,"n_rows":95,"n_cols":12,"rows_kept":95,"cut":false,"hidden":false,"merged":[[41,4,42,4],[54,3,54,9],[17,3,17,10],[39,3,40,3],[39,4,40,4],[21,0,21,3],[20,0,20,3],[21,5,21,10],[20,5,20,10],[18,3,18,10],[18,0,18,1],[39,0,40,1],[39,2,40,2],[3,0,3,1],[5,0,5,1],[10,0,10,1],[11,0,11,1],[10,5,10,8],[11,5,11,8],[4,0,4,1],[4,5,4,8],[3,5,3,8],[9,0,9,1],[6,0,6,1],[7,5,7,8],[7,0,7,1],[5,5,5,8],[6,5,6,8],[9,5,9,8],[3,2,3,4],[8,0,8,1],[8,2,8,4],[8,5,8,8],[4,2,4,4],[7,2,7,4],[6,2,6,4],[5,2,5,4],[12,0,12,1],[13,0,13,1],[12,5,12,8],[13,5,13,8],[13,2,13,4],[12,2,12,4],[11,2,11,4],[10,2,10,4],[14,5,14,8],[15,2,15,4],[14,2,14,4],[14,0,14,1],[66,0,72,10],[64,0,65,10],[63,0,63,10],[24,0,25,10],[23,0,23,10],[37,3,37,10],[36,3,36,10],[35,3,35,10],[34,3,34,10],[33,3,33,10],[32,3,32,10],[31,3,31,10],[30,3,30,10],[29,3,29,10],[28,3,28,10],[27,3,27,10],[56,3,56,9],[55,3,55,9],[61,3,61,9],[41,3,42,3],[41,0,42,2],[95,0,96,10],[94,0,94,10],[92,3,92,10],[91,3,91,10],[90,3,90,10],[89,3,89,10],[88,3,88,10],[87,3,87,10],[84,0,85,10],[60,3,60,9],[59,3,59,9],[58,3,58,9],[57,3,57,9],[74,0,74,10],[75,0,76,10],[81,3,81,10],[80,3,80,10],[79,3,79,10],[78,3,78,10],[15,5,15,8],[15,0,15,1],[17,0,17,1],[8,9,8,10],[83,0,83,10],[0,0,1,10],[46,0,47,10],[45,0,45,10],[44,0,44,10],[49,0,49,10],[50,0,51,10],[3,9,3,10],[4,9,4,10],[5,9,5,10],[6,9,6,10],[7,9,7,10],[9,9,9,10],[10,9,10,10],[11,9,11,10],[12,9,12,10],[13,9,13,10],[14,9,14,10],[15,9,15,10],[9,2,9,4]]}
["DOSSIER DE DEMANDE DE FONDS DE SOUTIEN EXCEPTIONNEL\nCONSEIL DÉPARTEMENTAL DES PYRÈNES ATLANTIQUES"]
[]
[]
["NOM DE L'ASSOCIATION ",null,null,null,null,"ADRESSE SIEGE SOCIAL "]
["DATE DE CRÉATION DE L'ASSOCIATION ",null,null,null,null,"Nombre d'adhérents "]
["NOM ET PRÉNOM DU REPRÉSENTANT LÉGAL ",null,null,null,null,"NOM ET PRÉNOM de la personne chargée du dossier "]
["TEL / COURRIEL DU REPRESENTANT LÉGAL ",null,null,null,null,"TEL / COURRIEL de la personne chargée du dossier "]
["FONCTION (président ou autre fonction désignée par les statuts) ",null,null,null,null,"FONCTION de la personne chargée du dossier "]
["MEMBRE D'UN RÉSEAU (précisez qui)",null,null,null,null,"Comptabilité"]
["NOMBRE DE SALARIÉS ",null,null,null,null,"Numéro de SIREN-SIRET "]
["Préciser nombre de CDI et/ou CDD ",null,null,null,null,"Département du siège social"]
["dont contrats aidés (CDDI, CUI, PEC…) ",null,null,null,null,"Secteur d'activité ",null,null,null,null,null,"choisir dans liste déroulante"]
["dont intermittents ",null,null,null,null,"Détail des activités "]
["dont saisonniers ",null,null,null,null,"Dernier exercice clos (comptes arrêtés)",null,null,null,2021,null,"choisir dans liste déroulante"]
["Autre (service civique, stagiaire…) ",null,null,null,null,"Territoire d'intervention de la structure (canton) ",null,null,null,null,null,"choisir dans liste déroulante"]
["Nombre d'équivalents temps plein (ETP) ",null,null,null,null," Pour trouver votre canton ",null,null,null,"Carte"]
[]
["Votre association dispose-t-elle de locaux? ",null,"Réponse",null,null,null,null,null,null,null,null,"choisir dans liste déroulante"]
["Si oui, quel est votre statut d'occupation ?",null,"Réponse",null,null,null,null,null,null,null,null,"choisir dans liste déroulante"]
[]
["Votre association a-t-elle déjà mobilisé le DLA (Dispositif Local d'Accompagnement) ?",null,null,null,"Réponse",null,null,null,null,null,null,"choisir dans liste déroulante"]
["Votre association a-t-elle déjà mobilisé France Active Aquitaine ?",null,null,null,"Réponse",null,null,null,null,null,null,"choisir dans liste déroulante"]
[]
["1- Sur quels aspects de votre projet la crise sanitaire a-t-elle eu un impact ?"]
["Cochez les réponses correspondantes et précisez les éléments concernés.\nVous pouvez également joindre à ce questionnaire tout document permettant d’appréhender le contexte et les impacts."]
[]
[]
[null,"Suppression ou report de manifestations ","Précisez:"]
[null,"Suppression ou report d'évènements ","Précisez:"]
[null,"Suppression ou report de prestations","Précisez:"]
[null,"Impacts sur l'organisation de manifestations, d'évènements ou de prestations","Précisez:"]
[null,"Résidences, tournées ou représentations annulées ou reportées","Précisez:"]
[null,"Diminution des activités et recettes réalisées","Précisez:"]
[null,"Pertes d’adhésions et de partenariats","Précisez:"]
[null,"Mise en sommeil du fonctionnement de l'association ","Précisez:"]
[null,"Augmentation de l'activité","Précisez:"]
[null,"Modification de l'activité avec des modalités différentes d'organisation","Précisez:"]
[null,"Autres impacts ","Précisez:"]
[]
["Avez-vous établi un plan de trésorerie ? ",null,"Plan de trésorerie","Réponse : ",null,"choisir dans liste déroulante"]
[]
["Estimez-vous une rupture de trésorerie possible ?",null,null,"Réponse : ",null,"choisir dans liste déroulante"]
[]
[]
["2- Précisions sur votre état de trésorerie"]
["Quel est son montant actuel ? Sur combien de jours/de mois peut-elle absorber vos charges ?  Quel était son montant avant et après les mois les plus fortement impactés par le Covid ?  Comment votre trésorerie a-t-elle été impactée ?  Autres détails que vous souhaitez partager ?"]
["\n"]
[]
[]
["3- Impact ressources humaines"]
["Cochez les réponses correspondantes et précisez les éléments concernés. Notamment : impacts liés au chômage partiel/ complet/ licenciement(s)/ ...\nVous pouvez également joindre à ce questionnaire tout document permettant d’appréhender le contexte et les impacts."]
[]
[]
[null,null,null,null,null,null,null,null,null,null,"Nombre ETP impacté(s)"]
[null,"CDI impacté(s)","Précisez:"]
[null,"CDD impacté(s) ","Précisez:"]
[null,"Intermittent(s) mobilisé(s) impacté(s)","Précisez:"]
[null,"Contrat(s) en insertion impacté(s)","Précisez:"]
[null,"Prestataire(s) impacté(s)","Précisez:"]
[null,"Alternant(s) impacté(s)","Précisez:"]
[null,"Stagiaire(s), service(s) civique(s), …  impacté(s)","Précisez:"]
[null,"Autres impacts ","Précisez:"]
[]
["4- Impact estimé à plus long terme"]
["Si vous pressentez déjà des répercussions sur le fonctionnement de votre structure à plus long terme (année 2021), vous avez la possibilité de préciser librement cette perception."]
[]
["Précisez: "]
[]
[]
[]
[]
[]
[]
[]
["5- Quelles sont les perspectives actuelles de votre structure?"]
["Cochez les réponses correspondantes et précisez les éléments concernés. "]
[]
[]
[null,"Pérennité compromise à court ou moyen terme ","Précisez:"]
[null,"Reprise de l'activité à l'identique","Précisez:"]
[null,"Réorganisation","Précisez:"]
[null,"Autres","Précisez:"]
[]
["6- Vos attentes et vos besoins au-delà d'une aide financière"]
["Cochez les réponses correspondantes et précisez les éléments concernés."]
[]
[]
[null,"Assistance pour trouver des solutions adaptées aux circonstances","Précisez:"]
[null,"Maintien des partenariats financiers ","Précisez:"]
[null,"Facilités de trésorerie","Précisez:"]
[null,"Report de remboursement de crédit ","Précisez:"]
[null,"Suspension de paiements courants (charges fixes)","Précisez:"]
[null,"Autres","Précisez:"]
[]
["7- Eléments complémentaires que vous souhaitez préciser"]

{"sheet":"Carte","index":3,"n_rows":36,"n_cols":2,"rows_kept":36,"cut":false,"hidden":false,"merged":[]}
[]
[]
[]
[]
[]
[]
[]
[]
[]
[]
[]
[]
[]
[]
[]
[]
[]
[]
[]
[]
[]
[]
[]
[]
[]
[]
[]
[]
[]
[]
[]
[]
[]
[]
[]
["Lien: ","https://data.le64.fr/"]

{"sheet":"3-Saisie des comptes passés","index":4,"n_rows":49,"n_cols":11,"rows_kept":49,"cut":false,"hidden":false,"merged":[[40,2,40,3],[41,1,41,3],[2,5,2,8],[1,1,1,8],[2,1,2,4],[13,1,13,8],[14,1,14,4],[14,5,14,8],[30,5,33,8]]}
[]
[null,"Bilan en €"]
[null,"Actif  ",null,null,null,"Passif"]
[null,"Période exercice (indiquer la date de l'exercice comptable) du ……..au ……...","du ….. au ….","du ….. au ….","du ….. au ….","Période exercice comptable",{"$f":"C4","v":"du ….. au …."},"du ….. au ….","du ….. au …."]
[null,null,{"$f":"D5-1","v":2019},{"$f":"IF('2-Présentation de la structure '!J14<>2021,'2-Présentation de la structure '!J14,'3-Saisie des comptes passés'!E5-1)","v":2020},{"$f":"IF('2-Présentation de la structure '!J14=2021,\"2021\",\"Ne pas remplir\")","v":"2021"},null,2019,2020,"2021"]
[null,"Actif immobilisé net: ",null,null,null,"Fonds propres: "]
[null,"Actif circulant: ",null,null,null,"dont subventions d'investissement"]
[null,"dont disponibilités",null,null,null,"Dettes financières moyen terme: "]
[null,"dont créances clients",null,null,null,"Dettes financières court terme: "]
[null,"dont subventions à recevoir",null,null,null,"Dettes d'exploitation: "]
[null,"TOTAL ACTIF",{"$f":"C6+C7","v":0},{"$f":"D6+D7","v":0},{"$f":"E6+E7","v":0},"TOTAL PASSIF",{"$f":"G6+G8+G9+G10","v":0},{"$f":"H6+H8+H9+H10","v":0},{"$f":"I6+I8+I9+I10","v":0}]
[null,null,{"$f":"C7-C8-C9-C10","v":0},{"$f":"D7-D8-D9-D10","v":0},{"$f":"E7-E8-E9-E10","v":0},null,{"$f":"G6-G7","v":0},{"$f":"H6-H7","v":0},{"$f":"I6-I7","v":0}]
[]
[null,"Compte de résultat en € "]
[null,"Charges",null,null,null,"Produits"]
[null,"Période exercice",{"$f":"C4","v":"du ….. au …."},"du ….. au ….","du ….. au ….","Période exercice",{"$f":"C16","v":"du ….. au …."},{"$f":"D16","v":"du ….. au …."},{"$f":"E16","v":"du ….. au …."}]
[null,null,2019,2020,"2021",null,{"$f":"C5","v":2019},{"$f":"D5","v":2020},{"$f":"E5","v":"2021"}]
[null,"Charges d'exploitation:",{"$f":"C19+C20+C21+C22+C23+C24","v":0},{"$f":"D19+D20+D21+D22+D23+D24","v":0},0,"Produits d'exploitation: ",{"$f":"G19+G20+G21+G22+G23+G24","v":0},{"$f":"H19+H20+H21+H22+H23+H24","v":0},{"$f":"I19+I20+I21+I22+I23+I24","v":0}]
[null,{"$f":"\"=  Achats marchandises + Autres achats et charges externes\"","v":"=  Achats marchandises + Autres achats et charges externes"},null,null,{"$f":"IF($E$17=\"2021\",'4-Saisie comptes prévisionnels'!B11,0)","v":0},{"$f":"\"= Chiffre d'affaires \"","v":"= Chiffre d'affaires "},null,null,{"$f":"IF($I$17=\"2021\",'4-Saisie comptes prévisionnels'!E11,0)","v":0}]
[null,{"$f":"\"+  Salaires bruts\"","v":"+  Salaires bruts"},null,null,{"$f":"IF($E$17=\"2021\",'4-Saisie comptes prévisionnels'!B12,0)","v":0},{"$f":"\"+ Subventions \"","v":"+ Subventions "},null,null,{"$f":"IF($I$17=\"2021\",'4-Saisie comptes prévisionnels'!E12,0)","v":0}]
[null,{"$f":"\"+ Charges sociales\"","v":"+ Charges sociales"},null,null,{"$f":"IF($E$17=\"2021\",'4-Saisie comptes prévisionnels'!B13,0)","v":0},{"$f":"\"+ Aides aux postes \"","v":"+ Aides aux postes "},null,null,{"$f":"IF($I$17=\"2021\",'4-Saisie comptes prévisionnels'!E13,0)","v":0}]
[null,{"$f":"\"+ Dotations aux amortissements\"","v":"+ Dotations aux amortissements"},null,null,{"$f":"IF($E$17=\"2021\",'4-Saisie comptes prévisionnels'!B14,0)","v":0},{"$f":"\"+ Reprise sur Amort. & Prov.\"","v":"+ Reprise sur Amort. & Prov."},null,null,{"$f":"IF($I$17=\"2021\",'4-Saisie comptes prévisionnels'!E14,0)","v":0}]
[null,{"$f":"\"+ Autres charges d'exploitation/ Impots\"","v":"+ Autres charges d'exploitation/ Impots"},null,null,{"$f":"IF($E$17=\"2021\",'4-Saisie comptes prévisionnels'!B15,0)","v":0},{"$f":"\"+ Autres produits\"","v":"+ Autres produits"},null,null,{"$f":"IF($I$17=\"2021\",'4-Saisie comptes prévisionnels'!E15,0)","v":0}]
[null,{"$f":"\"+ Surcoût COVID19 \"","v":"+ Surcoût COVID19 "},null,null,{"$f":"IF($E$17=\"2021\",'4-Saisie comptes prévisionnels'!B16,0)","v":0},{"$f":"\"+ Aides liées au COVID19 \"","v":"+ Aides liées au COVID19 "},null,null,{"$f":"IF($I$17=\"2021\",'4-Saisie comptes prévisionnels'!E16,0)","v":0}]
[null,"Charges financières: ",null,null,{"$f":"IF($E$17=\"2021\",'4-Saisie comptes prévisionnels'!B17,0)","v":0},"Produits financiers: ",null,null,{"$f":"IF($I$17=\"2021\",'4-Saisie comptes prévisionnels'!E17,0)","v":0}]
[null,"Charges exceptionnelles: ",null,null,{"$f":"IF($E$17=\"2021\",'4-Saisie comptes prévisionnels'!B18,0)","v":0},"Produits exceptionnels: ",null,null,{"$f":"IF($I$17=\"2021\",'4-Saisie comptes prévisionnels'!E18,0)","v":0}]
[null,"dont VCEAC",null,null,{"$f":"IF($E$17=\"2021\",'4-Saisie comptes prévisionnels'!B19,0)","v":0},"dont quote part de subvention virée au résultat",null,null,{"$f":"IF($I$17=\"2021\",'4-Saisie comptes prévisionnels'!E19,0)","v":0}]
[null,"dont charges s/ex. antérieurs",null,null,{"$f":"IF($E$17=\"2021\",'4-Saisie comptes prévisionnels'!B20,0)","v":0},"dont PCEA",null,null,{"$f":"IF($I$17=\"2021\",'4-Saisie comptes prévisionnels'!E20,0)","v":0}]
[null,"Autres (impôts sociétés): ",null,null,{"$f":"IF($E$17=\"2021\",'4-Saisie comptes prévisionnels'!B21,0)","v":0},"Autres (report des ressources): ",null,null,{"$f":"IF($I$17=\"2021\",'4-Saisie comptes prévisionnels'!E21,0)","v":0}]
[]
[null,"Résultat d'exploitation",{"$f":"G18-C18","v":0},{"$f":"H18-D18","v":0},{"$f":"I18-E18","v":0},{"$f":"IF('2-Présentation de la structure '!J14=2021,'3-Saisie des comptes passés'!K31,\"\")","v":"Vos comptes de 2021 sont déjà arrêtés et/ou certifiés, alors saisir directement le compte de résultat de 2021 dans l'onglet \"4-Saisie comptes prévisionnels\""},null,null,null,null,"Vos comptes de 2021 sont déjà arrêtés et/ou certifiés, alors saisir directement le compte de résultat de 2021 dans l'onglet \"4-Saisie comptes prévisionnels\""]
[null,"Résultat net",{"$f":"G18+G25+G26+G29-C18-C25-C26-C29","v":0},{"$f":"H18+H25+H26+H29-D18-D25-D26-D29","v":0},{"$f":"I18+I25+I26+I29-E18-E25-E26-E29","v":0}]
[]
[null,"CAF",{"$f":"C32+C22-G27","v":0},{"$f":"D32+D22-H27","v":0},{"$f":"E32+E22-I27","v":0}]
[]
[]
[null,null,{"$f":"C17","v":2019},{"$f":"D17","v":2020},{"$f":"IF('2-Présentation de la structure '!J14=2021,\"2021\",\"\")","v":"2021"}]
[null,"Endettemt M/LT sur FDS PROPRES",{"$f":"IF(G6<0,\"FP. Négatif\",IF(G8>0,G8/G6,0))","v":0},{"$f":"IF(H6<0,\"FP. Négatif\",IF(H8>0,H8/H6,0))","v":0},{"$f":"IF(E37=\"\",\"\",IF(I6<0,\"FP. Négatif\",IF(I8>0,I8/I6,0)))","v":0}]
[null,"ENDET à + d'un an/CAF (en année)",{"$f":"G8/C34","v":{"$error":"#DIV/0!"}},{"$f":"H8/D34","v":{"$error":"#DIV/0!"}},{"$f":"IF(E37=\"\",\"\",(I8/E34))","v":{"$error":"#DIV/0!"}}]
[null,"ENDET global/CAF",{"$f":"(G8+G9)/C34","v":{"$error":"#DIV/0!"}},{"$f":"(H8+H9)/D34","v":{"$error":"#DIV/0!"}},{"$f":"IF(E37=\"\",\"\",((I8+I9)/E34))","v":{"$error":"#DIV/0!"}}]
[]
[null,"ENDETTEMENT Futur €"]
[null,null,{"$f":"IF(E37=\"\",\"2021 Prévi\",\"\")","v":""},"2022 Prévi"]
[null,"CAF",{"$f":"IF(C43=\"\",\"\",'4-Saisie comptes prévisionnels'!B26)","v":""},{"$f":"'4-Saisie comptes prévisionnels'!C26","v":0}]
[null,"Rbts des emprunts passés",{"$f":"IF(C43=\"\",\"\",'5-Impact COVID19'!L40)","v":""},{"$f":"'5-Impact COVID19'!M40","v":0}]
[null,"Mesures COVID19 - Reports échéances",{"$f":"IF(C43=\"\",\"\",'5-Impact COVID19'!J57)","v":""},{"$f":"'5-Impact COVID19'!L57","v":0}]
[null,"Capacité d'emprunt avant prêt COVID19",{"$f":"IF(C43=\"\",\"\",IF(C44-C45+C46>0,C44-C45+C46,0))","v":""},{"$f":"IF(D44-D45+D46>0,D44-D45+D46,0)","v":0}]
[null,"Rbts des nouveaux prêts COVID19",{"$f":"IF(C43=\"\",\"\",'5-Impact COVID19'!J51)","v":""},{"$f":"'5-Impact COVID19'!L51","v":0}]
[null,"Capacité d'emprunt restante",{"$f":"IF(C43=\"\",\"\",IF(C44-C45+C46-C48>=0,C44-C45+C46-C48,\"Grave\"))","v":""},{"$f":"IF(D44-D45-D48>=0,D44-D45-D48,\"Grave\")","v":0}]

{"sheet":"4-Saisie comptes prévisionnels","index":5,"n_rows":26,"n_cols":7,"rows_kept":26,"cut":false,"hidden":false,"merged":[[7,0,8,0],[0,0,0,5],[6,0,6,2],[6,3,6,5],[3,0,3,3],[4,0,4,3],[2,2,2,5]]}
["Compte de résultat 2021 et 2022 (en €)"]
[]
["Pour les demandes déposées après le 01/01/2022",null,{"$f":"IF('2-Présentation de la structure '!J14=2021,G3,\"\")","v":"Attention : Vous avez indiqué en page \"présentation de la structure\" que votre dernier exercice clôturé est celui de 2021. Normalement, vous devez répondre \"oui\" aux deux questions ci-dessous. Sinon, changer l'information sur la date du dernier exercice clos qui figure dans la page \"Présentation de la structure\" "},null,null,null,"Attention : Vous avez indiqué en page \"présentation de la structure\" que votre dernier exercice clôturé est celui de 2021. Normalement, vous devez répondre \"oui\" aux deux questions ci-dessous. Sinon, changer l'information sur la date du dernier exercice clos qui figure dans la page \"Présentation de la structure\" "]
["Vos comptes 2021, ont-ils été arrêtés lors de votre AG de 2022 ?",null,null,null,"Réponse",null,"choisir dans liste déroulante"]
["Les chiffres de 2021 ci-dessous sont produits à partir de votre arrêté comptable de 2021 ?",null,null,null,"Réponse",null,"choisir dans liste déroulante"]
[]
["Charges",null,null,"Produits"]
["Période exercice (indiquer la date de l'exercice comptable) \ndu ……..au ………","du ….. au ….","du ….. au ….","Période exercice comptable",{"$f":"B8","v":"du ….. au …."},{"$f":"C8","v":"du ….. au …."}]
[null,2021,2022,null,{"$f":"B9","v":2021},{"$f":"C9","v":2022}]
["Charges d'exploitation :",{"$f":"B11+B12+B13+B14+B15+B16","v":0},{"$f":"C11+C12+C13+C14+C15+C16","v":0},"Produits d'exploitation (hors aides liées au COVID19) :",{"$f":"E11+E12+E13+E14+E15+E16","v":0},{"$f":"F11+F12+F13+F14+F15+F16","v":0},"Remplir l'onglet suivant \"impact covid19\""]
[{"$f":"\"=  Achats marchandises + Autres achats et charges externes\"","v":"=  Achats marchandises + Autres achats et charges externes"},null,null,{"$f":"\"= Chiffre d'affaires \"","v":"= Chiffre d'affaires "},{"$f":"+'5-Impact COVID19'!E3","v":0},{"$f":"+'5-Impact COVID19'!F3","v":0},"Remplir l'onglet suivant \"impact covid19\""]
[{"$f":"\"+  Salaires bruts\"","v":"+  Salaires bruts"},null,null,{"$f":"\"+ Subventions \"","v":"+ Subventions "},{"$f":"+'5-Impact COVID19'!E18-'5-Impact COVID19'!E17","v":0},{"$f":"+'5-Impact COVID19'!F18-'5-Impact COVID19'!F17","v":0},"Remplir l'onglet suivant \"impact covid19\""]
[{"$f":"\"+ Charges sociales\"","v":"+ Charges sociales"},null,null,{"$f":"\"+ Aides aux postes \"","v":"+ Aides aux postes "},{"$f":"'5-Impact COVID19'!E24","v":0},{"$f":"'5-Impact COVID19'!F24","v":0},"Remplir l'onglet suivant \"impact covid19\""]
[{"$f":"\"+ Dotations aux amortissements\"","v":"+ Dotations aux amortissements"},null,null,{"$f":"\"+ Reprise sur Amort. & Prov.\"","v":"+ Reprise sur Amort. & Prov."}]
[{"$f":"\"+ Autres charges/ Impots\"","v":"+ Autres charges/ Impots"},null,null,{"$f":"\"+ Autres produits\"","v":"+ Autres produits"}]
[null,null,null,{"$f":"\"+ Aides liées au COVID19 \"","v":"+ Aides liées au COVID19 "},{"$f":"'5-Impact COVID19'!E17","v":0},{"$f":"'5-Impact COVID19'!F17","v":0},"Remplir l'onglet suivant \"impact covid19\""]
["Charges financières :",null,null,"Produits financiers :"]
["Charges exceptionnelles :",null,null,"Produits exceptionnels :"]
["dont VCEAC",null,null,"dont quote part de subvention virée au résultat"]
["dont charges s/ex. antérieurs",null,null,"dont PCEA"]
["Autres (impôts sociétés) :",null,null,"Autres (report des ressources) :"]
[]
["Résultat d'exploitation",{"$f":"E10-B10","v":0},{"$f":"F10-C10","v":0}]
["Résultat net",{"$f":"E10+E17+E18+E21-B10-B17-B18-B21","v":0},{"$f":"F10+F17+F18+F21-C10-C17-C18-C21","v":0}]
[]
["CAF",{"$f":"B24+B14-E19","v":0},{"$f":"C24+C14-F19","v":0}]

{"sheet":"5-Impact COVID19","index":6,"n_rows":76,"n_cols":14,"rows_kept":76,"cut":false,"hidden":false,"merged":[[59,12,59,13],[59,3,59,4],[59,1,59,2],[58,1,58,2],[58,3,58,4],[59,7,59,8],[58,5,58,6],[59,5,59,6],[58,7,58,8],[28,1,28,14],[29,1,30,1],[0,1,26,1],[34,4,34,5],[58,12,58,13],[55,1,55,2],[56,1,56,2],[57,1,57,2],[55,3,55,4],[55,5,55,6],[56,3,56,4],[57,3,57,4],[31,4,31,5],[31,7,31,8],[31,13,31,14],[32,4,32,5],[32,7,32,8],[32,13,32,14],[0,2,0,5],[6,2,6,5],[21,2,21,5],[22,2,23,2],[27,1,27,14],[48,7,48,8],[45,7,45,8],[43,7,44,8],[43,5,44,5],[34,13,34,14],[38,4,38,5],[38,7,38,8],[43,1,44,1],[43,3,44,3],[43,4,44,4],[43,6,44,6],[41,1,41,14],[39,4,39,6],[34,7,34,8],[45,9,45,10],[43,9,44,10],[46,9,46,10],[56,12,56,13],[49,11,49,12],[49,9,49,10],[37,13,37,14],[47,9,47,10],[46,11,46,12],[47,11,47,12],[49,13,49,14],[45,13,45,14],[48,13,48,14],[43,13,44,14],[42,1,42,14],[45,11,45,12],[43,11,44,12],[48,9,48,10],[75,1,76,14],[57,12,57,13],[57,7,57,8],[56,5,56,6],[57,5,57,6],[50,11,50,12],[50,9,50,10],[55,7,55,8],[56,7,56,8],[55,12,55,13],[53,1,54,13],[43,2,44,2],[49,7,49,8],[77,1,83,14],[33,4,33,5],[33,7,33,8],[33,13,33,14],[64,1,72,14],[62,1,63,14],[38,13,38,14],[35,4,35,5],[35,7,35,8],[35,13,35,14],[36,4,36,5],[36,7,36,8],[36,13,36,14],[37,4,37,5],[37,7,37,8],[48,11,48,12],[29,13,30,14],[29,2,30,2],[29,3,30,3],[29,4,30,5],[29,6,30,6],[29,7,30,8]]}
[null,"DETAIL DES PRODUITS D'EXPLOITATION","CHIFFRE D'AFFAIRES FACTURÉ HORS TAXE (montant en €)"]
[null,null,"Années ",2020,2021,2022]
[null,null,"CA ",{"$f":"'3-Saisie des comptes passés'!H19","v":0}]
[null,null,"écart en €",{"$f":"IF('3-Saisie des comptes passés'!G19=0,\"\",'3-Saisie des comptes passés'!H19-'3-Saisie des comptes passés'!G19)","v":""},{"$f":"E3-D3","v":0},{"$f":"F3-E3","v":0}]
[null,null,"%",{"$f":"IF(D4=\"\",\"\",('3-Saisie des comptes passés'!H19-'3-Saisie des comptes passés'!G19)/'3-Saisie des comptes passés'!H19)","v":""},{"$f":"(E3-D3)/D3","v":{"$error":"#DIV/0!"}},{"$f":"(F3-E3)/E3","v":{"$error":"#DIV/0!"}}]
[]
[null,null,"SUBVENTIONS et COTISATIONS (montant en €)"]
[null,null,"Nom des financeurs ",{"$f":"D2","v":2020},{"$f":"E2","v":2021},{"$f":"F2","v":2022}]
[]
[]
[]
[]
[]
[]
[]
[null,null,"Autres"]
[null,null,"AIDES LIEES AU COVID19 (en €)",{"$f":"'3-Saisie des comptes passés'!H24","v":0}]
[null,null,"Total",{"$f":"SUM(D9:D17)","v":0},{"$f":"SUM(E9:E17)","v":0},{"$f":"SUM(F9:F17)","v":0}]
[null,null,"Ecart ",null,{"$f":"E18-D18","v":0},{"$f":"F18-E18","v":0}]
[null,null,"%",null,{"$f":"E19/D18","v":{"$error":"#DIV/0!"}},{"$f":"F19/E18","v":{"$error":"#DIV/0!"}}]
[]
[null,null,"AIDES AUX POSTES (montant en €)"]
[null,null,"Montant des aides aux postes",{"$f":"D8","v":2020},{"$f":"E8","v":2021},{"$f":"F8","v":2022}]
[]
[null,null,"Ecart ",null,{"$f":"E24-D24","v":0},{"$f":"F24-E24","v":0}]
[null,null,"%",null,{"$f":"E25/D24","v":{"$error":"#DIV/0!"}},{"$f":"F25/E24","v":{"$error":"#DIV/0!"}}]
[]
[null,"NIVEAU D'ENDETTEMENT DE LA STRUCTURE 2019 "]
[null,"Pouvez-vous lister les aides et/ou prêts dont vous avez bénéficié et qui sont en cours de remboursement ?         "]
[null,"Objet de financement (Invest/Tréso)","Montant initial","Montant de l'échéance ","Périodicité des échéances\n(choisir dans la liste déroulante)",null,"Durée\n(en années)","Date de fin\n(mm/aa)",null,2019,2020,"Remboursements 2021","Remboursements 2022","Etablissement Bancaire"]
[null,null,null,null,null,null,null,null,null,"Remboursements part capital","Remboursements part capital","Remboursements part capital","Remboursements part capital"]
[]
[]
[]
[]
[]
[]
[]
[]
[null,null,null,null,null,null,null,null,null,{"$f":"SUM(J32:J39)","v":0},{"$f":"SUM(K32:K39)","v":0},{"$f":"SUM(L32:L39)","v":0},{"$f":"SUM(M32:M39)","v":0}]
[]
[null,"NOUVEAUX EMPRUNTS DE LA STRUCTURE 2020 "]
[null,"Pouvez-vous lister les aides et/ou prêts dont vous avez bénéficié et qui sont en cours de remboursement ?          *Saisie OBLIGATOIRE"]
[null,"Objet de financement (Invest/Tréso)","Type de prêt\n(choisir dans la liste déroulante)","Montant Initial ","Montant de l'échéance","Périodicité des échéances\n(choisir dans la liste déroulante)","Durée\n(en années)","Date de déblocage\n(mm/aa)",null,"Remboursements (part capital) 2021",null,"Remboursements (part capital) 2022",null,"Etablissement Bancaire"]
[]
[]
[]
[]
[]
[]
[null,null,null,{"$f":"SUM(D46:D50)","v":0},null,null,null,null,null,{"$f":"SUM(J46:J50)","v":0},null,{"$f":"SUM(L46:L50)","v":0}]
[]
[]
[null,"LES MESURES MISES EN PLACE"]
[]
[null,"Mesures principales",null,"Montant Total",null,"Modalité",null,"Commentaires  ",null,"Affecté en 2021","Statut de la demande","Affecté en 2022","Statut de la demande"]
[null,"Report d'échéances prêts ",null,null,null,"Ex : Report de 8 mois "]
[null,"Report de loyers des locaux commerciaux ","Report loyers locaux commerciaux"]
[null,"Autres: "]
[]
[null,null,null,null,null,null,null,null,null,{"$f":"SUM(J57:J60)","v":0},null,{"$f":"SUM(L57:L60)","v":0}]
[]
[null,"DĖTAILS / COMMENTAIRES / ĖLĖMENTS IMPORTANTS A SIGNALER"]
[]
[]
[]
[]
[]
[]
[]
[]
[]
[]
[]
[]
[null,"Signature du président et/ou du dirigeant/ Indication de la date de dépôt"]

{"sheet":"Plan de trésorerie","index":7,"n_rows":30,"n_cols":15,"rows_kept":30,"cut":false,"hidden":false,"merged":[]}
[]
[null,"Janvier","Février","Mars","Avril","Mai","Juin","Juillet","Août","Septembre","Octobre","Novembre","Décembre",null,"TOTAL"]
["Encaissements"]
["CA 1",null,null,null,null,null,null,null,null,null,null,null,null,null,{"$f":"SUM(B4:M4)","v":0}]
["CA 2",null,null,null,null,null,null,null,null,null,null,null,null,null,0]
["CA 3",null,null,null,null,null,null,null,null,null,null,null,null,null,0]
["CA 4",null,null,null,null,null,null,null,null,null,null,null,null,null,0]
["CA 5",null,null,null,null,null,null,null,null,null,null,null,null,null,0]
["Subventions :",null,null,null,null,null,null,null,null,null,null,null,null,null,{"$f":"SUM(B9:M9)","v":0}]
["Subventions :",null,null,null,null,null,null,null,null,null,null,null,null,null,{"$f":"SUM(B10:M10)","v":0}]
["Financement investissement (banque, France Active Aquitaine, fondations...)",null,null,null,null,null,null,null,null,null,null,null,null,null,0]
[]
["Total",{"$f":"SUM(B4:B11)","v":0},0,0,0,0,0,0,0,0,0,0,0,null,{"$f":"SUM(O4:O11)","v":0}]
[]
["Décaissements"]
["Achats de MP ou marchandises",null,null,null,null,null,null,null,null,null,null,null,null,null,{"$f":"SUM(B16:M16)","v":0}]
["Autres achats et charges externes",null,null,null,null,null,null,null,null,null,null,null,null,null,{"$f":"SUM(B17:M17)","v":0}]
["Prestation externes",null,null,null,null,null,null,null,null,null,null,null,null,null,0]
["Impôts et taxes",null,null,null,null,null,null,null,null,null,null,null,null,null,0]
["Salaires nets",null,null,null,null,null,null,null,null,null,null,null,null,null,0]
["Charges sociales patronales et salariales",null,null,null,null,null,null,null,null,null,null,null,null,null,0]
["Achat investissement TTC",null,null,null,null,null,null,null,null,null,null,null,null,null,0]
["Remboursement crédit ",null,null,null,null,null,null,null,null,null,null,null,null,null,0]
["TVA à payer",null,null,null,null,null,null,null,null,null,null,null,null,null,{"$f":"SUM(B24:M24)","v":0}]
[]
["Total",{"$f":"SUM(B17:B23)","v":0},{"$f":"SUM(C17:C23)","v":0},0,0,0,0,0,0,0,0,0,0,null,{"$f":"SUM(O16:O24)","v":0}]
[]
["Solde du mois",{"$f":"B13-B26","v":0},0,0,0,0,0,0,0,0,0,0,0]
["Solde antérieur",null,{"$f":"B30","v":0},0,0,0,0,0,0,0,0,0,0]
["Soldes cumulés",null,{"$f":"SUM(C28:C29)","v":0},{"$f":"SUM(D28:D29)","v":0},{"$f":"SUM(E28:E29)","v":0},{"$f":"SUM(F28:F29)","v":0},{"$f":"SUM(G28:G29)","v":0},{"$f":"SUM(H28:H29)","v":0},0,0,0,0,0,null,{"$f":"M30","v":0}]

{"sheet":"Synthèse","index":8,"n_rows":135,"n_cols":12,"rows_kept":135,"cut":false,"hidden":false,"merged":[[79,6,79,7],[78,6,78,7],[77,6,77,7],[74,1,74,11],[48,1,48,11],[49,1,52,11],[66,1,66,11],[67,1,70,11],[56,1,56,2],[55,1,55,2],[54,1,54,2],[61,1,61,3],[59,1,59,2],[57,1,57,2],[76,6,76,7],[80,6,80,7],[88,6,88,7],[58,1,58,2],[84,6,84,7],[83,6,83,7],[82,6,82,7],[81,6,81,7],[87,6,87,7],[86,6,86,7],[85,6,85,7],[63,1,63,3],[62,1,62,3],[72,1,72,11],[64,1,64,3],[75,6,75,11],[75,1,75,5],[122,1,122,11],[123,1,126,11],[129,1,132,11],[128,1,128,11],[89,6,89,7],[98,1,98,3],[97,1,97,3],[96,1,96,3],[100,1,100,2],[95,1,95,3],[5,5,5,7],[6,5,6,7],[6,8,6,11],[5,12,5,15],[2,8,2,11],[3,8,3,11],[4,8,4,11],[5,8,5,11],[2,12,2,15],[3,12,3,15],[4,12,4,15],[8,1,8,11],[9,1,11,11],[35,1,35,11],[30,6,30,8],[31,6,31,8],[29,6,29,8],[26,9,27,9],[26,10,27,10],[26,11,27,11],[46,1,46,2],[45,1,45,2],[44,1,44,2],[43,1,43,2],[42,1,42,2],[0,1,0,11],[13,1,13,11],[4,5,4,7],[3,5,3,7],[2,5,2,7],[1,1,1,11],[4,3,4,4],[3,3,3,4],[2,3,2,4],[2,1,2,2],[3,1,3,2],[4,1,4,2],[5,3,5,4],[5,1,5,2],[6,3,6,4],[6,1,6,2]]}
[null,"SYNTHÈSE"]
[null,{"$f":"NOW()","v":"2022-06-27T16:42:58.890"}]
[null,"Nom de la structure",null,{"$f":"'2-Présentation de la structure '!C4","v":0},null,"Secteur d'activité ",null,null,{"$f":"'2-Présentation de la structure '!J12","v":0}]
[null,"Nom du Représentant Légal",null,{"$f":"'2-Présentation de la structure '!C6","v":0},null,"Détail des activités",null,null,{"$f":"'2-Présentation de la structure '!J13","v":0}]
[null,"Département du siège social",null,{"$f":"'2-Présentation de la structure '!J11","v":0},null,"Dernier exercice clos",null,null,{"$f":"'2-Présentation de la structure '!J14","v":2021}]
[null,"Numéro SIREN/SIRET",null,{"$f":"'2-Présentation de la structure '!J10","v":0},null,"Date de création",null,null,{"$f":"'2-Présentation de la structure '!C5","v":"00:00:00"}]
[null,"Nombre de ETP",null,{"$f":"'2-Présentation de la structure '!C16","v":0},null,"Territoire d'intervention de la structure",null,null,{"$f":"'2-Présentation de la structure '!J15","v":0}]
[]
[null,"Impact de la crise sanitaire"]
[]
[]
[]
[]
[" ","ÉLIGIBILITÉ ET CALCUL DU MONTANT DE L'AIDE"]
[null,{"$f":"\"Montant perte résultat net  N - année \"&'4-Saisie comptes prévisionnels'!B9","v":"Montant perte résultat net  N - année 2021"},{"$f":"'4-Saisie comptes prévisionnels'!C23","v":0}]
[null,{"$f":"\"Montant perte résultat net n-1 - année \"&'3-Saisie des comptes passés'!D5","v":"Montant perte résultat net n-1 - année 2020"},{"$f":"'3-Saisie des comptes passés'!D32","v":0}]
[null,"Montant baisse des produits d'exploitation ",{"$f":"'4-Saisie comptes prévisionnels'!E10-'3-Saisie des comptes passés'!H18","v":0}]
[null,"Variation vs. 2019 ",{"$f":"C17/'3-Saisie des comptes passés'!H18","v":{"$error":"#DIV/0!"}}]
[null,"Montant FP au 31/12/19",{"$f":"'3-Saisie des comptes passés'!H6","v":0}]
[null,"Montant FP au 31/12/20",{"$f":"'3-Saisie des comptes passés'!I6","v":0}]
[null,"Référence fonds propres pour règlement : ",{"$f":"IF(I5=2020,C20,C19)","v":0}]
[null,"Nombre de salariés en ETP",{"$f":"D7","v":0}]
[null,"Eligibilité"]
[null,"Fonds propres positifs",{"$f":"IF(C21>=0, \"OUI\",\"NON\")","v":"OUI"}]
[null,"Baisse d'activité > 30% ",{"$f":"IF(C18<-30%, \"OUI\",\"NON\")","v":{"$error":"#DIV/0!"}}]
[]
[null,"Calcul aide : Année","N","Résultat ex : ",{"$f":"IF(C27=\"N\",C15,IF(C27=\"N-1\",C16,0))","v":0},null,null,null,null,{"$f":"'3-Saisie des comptes passés'!D16","v":"du ….. au …."},{"$f":"'4-Saisie comptes prévisionnels'!B8","v":"du ….. au …."},{"$f":"'4-Saisie comptes prévisionnels'!C8","v":"du ….. au …."}]
[null,null,{"$f":"IF(C27=\"N-1\",\"Année \"&'3-Saisie des comptes passés'!D17,IF(C27=\"N\",\"Année \"&'4-Saisie comptes prévisionnels'!B9,\"\"))","v":"Année 2021"}]
[null,"Taille de la structure ","Entre 1 et < 6 salaries","de 6 à 20 salariés","> 20 salariés",null,"Les impacts de la crise sanitaire COVID 19",null,null,{"$f":"'5-Impact COVID19'!D2","v":2020},{"$f":"'5-Impact COVID19'!E2","v":2021},{"$f":"'5-Impact COVID19'!F2","v":2022}]
[null,"Effectif (palier)",{"$f":"IF(C22=0,0,IF(C22<6,1,0))","v":0},{"$f":"IF(C22<6,0,IF(C22>20,0,1))","v":0},{"$f":"IF(C22>20,1,0)","v":0},null,"Evolution du Chiffre d'Affaires ",null,null,{"$f":"'5-Impact COVID19'!D3","v":0},{"$f":"'5-Impact COVID19'!E3","v":0},{"$f":"'5-Impact COVID19'!F3","v":0}]
[null,"Seuil (euros)",3000,4000,5000,null,"Evolution des produits d'exploitation",null,null,{"$f":"'3-Saisie des comptes passés'!H18","v":0},{"$f":"'4-Saisie comptes prévisionnels'!E10","v":0},{"$f":"'4-Saisie comptes prévisionnels'!F10","v":0}]
[null,"Plafond (euros)",15000,30000,45000,null,"Aides liées au COVID19 ",null,null,null,{"$f":"'5-Impact COVID19'!E17","v":0},{"$f":"'5-Impact COVID19'!F17","v":0}]
[null,"Base de calcul ",{"$f":"IF(E27<0,ABS(E27/2),0)","v":0},{"$f":"IF(E27<0,ABS(E27/2),0)","v":0},{"$f":"IF(E27<0,ABS(E27/2),0)","v":0}]
[null,"Montant calculé aide ",{"$f":"IF(C33<3000,0,IF(C33>C32,C32*C30,C33*C30) )","v":0},{"$f":"IF(D33<3000,0,IF(D33>D32,D32*D30,D33*D30) )","v":0},{"$f":"IF(E33<3000,0,IF(E33>E32,E32*E30,E33*E30) )","v":0}]
[]
[null,"STRUCTURATION FINANCIÈRE"]
[]
[null,"Indicateurs financiers",{"$f":"'3-Saisie des comptes passés'!C5","v":2019},{"$f":"'3-Saisie des comptes passés'!D5","v":2020},{"$f":"IF('2-Présentation de la structure '!J14=2021,\"2021\",\"Cpte 2021 pas arrêté\")","v":"2021"}]
[null,"Fonds de roulement (FR)",{"$f":"'3-Saisie des comptes passés'!G6+'3-Saisie des comptes passés'!G8-'3-Saisie des comptes passés'!C6","v":0},{"$f":"'3-Saisie des comptes passés'!H6+'3-Saisie des comptes passés'!H8-'3-Saisie des comptes passés'!D6","v":0},{"$f":"IF(E38=\"Cpte 2021 pas arrêté\",\"/\",'3-Saisie des comptes passés'!I6+'3-Saisie des comptes passés'!I8-'3-Saisie des comptes passés'!E6)","v":0}]
[null,"Besoin en fonds de roulement (BFR)",{"$f":"'3-Saisie des comptes passés'!C7-'3-Saisie des comptes passés'!C8-'3-Saisie des comptes passés'!G10","v":0},{"$f":"'3-Saisie des comptes passés'!D7-'3-Saisie des comptes passés'!D8-'3-Saisie des comptes passés'!H10","v":0},{"$f":"IF(E38=\"Cpte 2021 pas arrêté\",\"/\",'3-Saisie des comptes passés'!E7-'3-Saisie des comptes passés'!E8-'3-Saisie des comptes passés'!I10)","v":0}]
[null,"Trésorerie (T)",{"$f":"'3-Saisie des comptes passés'!C8-'3-Saisie des comptes passés'!G9","v":0},{"$f":"'3-Saisie des comptes passés'!D8-'3-Saisie des comptes passés'!H9","v":0},{"$f":"IF(E38=\"Cpte 2021 pas arrêté\",\"/\",'3-Saisie des comptes passés'!E8-'3-Saisie des comptes passés'!I9)","v":0}]
[]
[null,"Analyse au niveau du bilan",null,{"$f":"D38","v":2020},{"$f":"IF('2-Présentation de la structure '!J14=2021,\"2021\",\"Cpte 2021 pas arrêté\")","v":"2021"}]
[null,"Fonds propres dernier exercice ",null,{"$f":"'3-Saisie des comptes passés'!H6","v":0},{"$f":"IF(E38=\"Cpte 2021 pas arrêté\",\"/\",'3-Saisie des comptes passés'!I6)","v":0}]
[null,"Variation des fonds propres sur les 2 derniers exercices ",null,{"$f":"('3-Saisie des comptes passés'!H6-'3-Saisie des comptes passés'!G6)/'3-Saisie des comptes passés'!G6","v":{"$error":"#DIV/0!"}},{"$f":"IF(E38=\"Cpte 2021 pas arrêté\",\"/\",(('3-Saisie des comptes passés'!I6-'3-Saisie des comptes passés'!H6)/'3-Saisie des comptes passés'!H6))","v":{"$error":"#DIV/0!"}}]
[null,"Fonds de roulement en jours de budget d'exploitation\n(< 0 = très grave ; < 15 = grave ; < 30 = préoccupant ; > 30 = Ok)",null,{"$f":"('3-Saisie des comptes passés'!H6+'3-Saisie des comptes passés'!H8-'3-Saisie des comptes passés'!D6)/'3-Saisie des comptes passés'!H18*360","v":{"$error":"#DIV/0!"}},{"$f":"IF(E38=\"Cpte 2021 pas arrêté\",\"/\",(('3-Saisie des comptes passés'!I6+'3-Saisie des comptes passés'!I8-'3-Saisie des comptes passés'!E6)/'3-Saisie des comptes passés'!I18*360))","v":{"$error":"#DIV/0!"}}]
[null,"Trésorerie en jours de budget d'exploitation \n(< 0 = très grave ; < 10 = grave ; < 20 = préoccupant ; > 20 = Ok)",null,{"$f":"('3-Saisie des comptes passés'!D8-'3-Saisie des comptes passés'!H9)/'3-Saisie des comptes passés'!H18*365","v":{"$error":"#DIV/0!"}},{"$f":"IF(E38=\"Cpte 2021 pas arrêté\",\"/\",(('3-Saisie des comptes passés'!E8-'3-Saisie des comptes passés'!I9)/'3-Saisie des comptes passés'!I18*365))","v":{"$error":"#DIV/0!"}}]
[]
[null,"Analyse financière:"]
[]
[]
[]
[]
[]
[null,"Ratios d'endettement",null,{"$f":"'3-Saisie des comptes passés'!C5","v":2019},{"$f":"'3-Saisie des comptes passés'!D5","v":2020},"Moyenne 2019-2020",{"$f":"IF('2-Présentation de la structure '!J14=2021,'2-Présentation de la structure '!J14,\"2021 Prévi\")","v":2021},"2022 Prévi"]
[null,"CAF (Capacité d'autofinancement)",null,{"$f":"'3-Saisie des comptes passés'!C34","v":0},{"$f":"'3-Saisie des comptes passés'!D34","v":0},{"$f":"(D56+E56)/2","v":0},{"$f":"IF(G55=2020,'3-Saisie des comptes passés'!E34,'4-Saisie comptes prévisionnels'!B26)","v":0},{"$f":"'4-Saisie comptes prévisionnels'!C26","v":0}]
[null,"Remboursements des Emprunts MLT (y compris COVID-19)",null,{"$f":"'5-Impact COVID19'!J40","v":0},{"$f":"'5-Impact COVID19'!K40","v":0},{"$f":"(D57+E57)/2","v":0},{"$f":"'5-Impact COVID19'!L40+'5-Impact COVID19'!J51","v":0},{"$f":"'5-Impact COVID19'!M40+'5-Impact COVID19'!L51","v":0}]
[null,"CAF disponible",null,{"$f":"IFERROR(IF(D56-D57<0,\"0\",D56-D57),\"-\")","v":0},{"$f":"E56-E57","v":0},{"$f":"(D58+E58)/2","v":0},{"$f":"IFERROR(IF(G56-G57<0,\"0\",G56-G57),\"-\")","v":0},{"$f":"IF(H56-H57<0,\"0\",H56-H57)","v":0}]
[null,"Endettemt M/LT sur Fonds Propres",null,{"$f":"'3-Saisie des comptes passés'!C38","v":0},{"$f":"'3-Saisie des comptes passés'!D38","v":0},{"$f":"(D59+E59)/2","v":0},{"$f":"IF(G55=2021,'3-Saisie des comptes passés'!E38,(('3-Saisie des comptes passés'!H8+'5-Impact COVID19'!D51)-G57)/('3-Saisie des comptes passés'!H6+'4-Saisie comptes prévisionnels'!B24))","v":0},{"$f":"(('3-Saisie des comptes passés'!H8+'5-Impact COVID19'!D51)-G57-H57)/('3-Saisie des comptes passés'!H6+'4-Saisie comptes prévisionnels'!B24+'4-Saisie comptes prévisionnels'!C24)","v":{"$error":"#DIV/0!"}}]
[null,"ENDET à + d'un an/CAF (en année)",null,{"$f":"IFERROR('3-Saisie des comptes passés'!C39,\"0\")","v":"0"},{"$f":"IFERROR('3-Saisie des comptes passés'!D39,\"0\")","v":"0"},{"$f":"(D60+E60)/2","v":0},{"$f":"IF(G55=2021,'3-Saisie des comptes passés'!E39,(('3-Saisie des comptes passés'!H8+'5-Impact COVID19'!D51)-G57)/G56)","v":{"$error":"#DIV/0!"}},{"$f":"(('3-Saisie des comptes passés'!H8+'5-Impact COVID19'!D51)-G57-H57)/H56","v":{"$error":"#DIV/0!"}}]
[null,null,null,null,null,null,null,"Hors nouveaux emprunts"]
[null,"Analyse de l'endettement",null,null,{"$f":"E55","v":2020},null,{"$f":"G55","v":2021},{"$f":"H55","v":"2022 Prévi"}]
[null,"Capacité à rembourser ses dettes financières MLT S/ le dernier exercice clos\n(>= 100% Très Grave; > 70 % = Grave; > 50 % = Préoccupant; < 50 % = OK)",null,null,{"$f":"E57/E56","v":{"$error":"#DIV/0!"}},null,{"$f":"IF(G62=2021,G57/G56,\"/\")","v":{"$error":"#DIV/0!"}},{"$f":"IF(H62=2021,H57/H56,\"/\")","v":"/"}]
[null,"Capacité à faire face à ses dettes financières MLT \n(>= 100% Très Grave; > 70 % =  Grave; > 50 % = Préoccupant; < 50 % = OK)",null,null,{"$f":"G57/G56","v":{"$error":"#DIV/0!"}},null,{"$f":"IF(G62=2021,H57/H56,\"/\")","v":{"$error":"#DIV/0!"}},{"$f":"IF(H62=2021,I57/I56,\"/\")","v":"/"}]
[null,"Taux d'endettement net sur le dernier exercice clos\n(>100% = Grave ; < 100% = OK)",null,null,{"$f":"E59","v":0},null,{"$f":"IF(G62=2021,G59,\"/\")","v":0},{"$f":"IF(H62=2021,H59,\"/\")","v":"/"}]
[]
[null,"Commentaire ratios financiers : "]
[]
[]
[]
[]
[]
[null,"Modèle économique"]
[]
[null,"Compte de résultat en € "]
[null,"Charges",null,null,null,null,"Produits"]
[null,"Période exercice comptable",{"$f":"'3-Saisie des comptes passés'!C16","v":"du ….. au …."},{"$f":"'3-Saisie des comptes passés'!D16","v":"du ….. au …."},{"$f":"'3-Saisie des comptes passés'!E16","v":"du ….. au …."},{"$f":"'4-Saisie comptes prévisionnels'!C8","v":"du ….. au …."},"Période exercice comptable",null,{"$f":"C77","v":"du ….. au …."},{"$f":"D77","v":"du ….. au …."},{"$f":"E77","v":"du ….. au …."},{"$f":"F77","v":"du ….. au …."}]
[null,null,{"$f":"'3-Saisie des comptes passés'!C17","v":2019},{"$f":"'3-Saisie des comptes passés'!D17","v":2020},{"$f":"G55","v":2021},{"$f":"H55","v":"2022 Prévi"},null,null,{"$f":"'3-Saisie des comptes passés'!G17","v":2019},{"$f":"'3-Saisie des comptes passés'!H17","v":2020},{"$f":"G55","v":2021},{"$f":"H55","v":"2022 Prévi"}]
[null,"Charges d'exploitation (hors surcoût Covid19)",{"$f":"'3-Saisie des comptes passés'!C18","v":0},{"$f":"'3-Saisie des comptes passés'!D18","v":0},{"$f":"'4-Saisie comptes prévisionnels'!B10","v":0},{"$f":"'4-Saisie comptes prévisionnels'!C10","v":0},"Produits d'exploitation (hors aides Covid19)",null,{"$f":"'3-Saisie des comptes passés'!G18","v":0},{"$f":"'3-Saisie des comptes passés'!H18","v":0},{"$f":"'4-Saisie comptes prévisionnels'!E10","v":0},{"$f":"'4-Saisie comptes prévisionnels'!F10","v":0}]
[null,{"$f":"\"=  Achats marchandises + Autres achats et charges externes\"","v":"=  Achats marchandises + Autres achats et charges externes"},{"$f":"'3-Saisie des comptes passés'!C19","v":0},{"$f":"'3-Saisie des comptes passés'!D19","v":0},{"$f":"'4-Saisie comptes prévisionnels'!B11","v":0},{"$f":"'4-Saisie comptes prévisionnels'!C11","v":0},{"$f":"\"= Chiffre d'affaires \"","v":"= Chiffre d'affaires "},null,{"$f":"'3-Saisie des comptes passés'!G19","v":0},{"$f":"'3-Saisie des comptes passés'!H19","v":0},{"$f":"'4-Saisie comptes prévisionnels'!E11","v":0},{"$f":"'4-Saisie comptes prévisionnels'!F11","v":0}]
[null,{"$f":"\"+  Salaires bruts\"","v":"+  Salaires bruts"},{"$f":"'3-Saisie des comptes passés'!C20","v":0},{"$f":"'3-Saisie des comptes passés'!D20","v":0},{"$f":"'4-Saisie comptes prévisionnels'!B12","v":0},{"$f":"'4-Saisie comptes prévisionnels'!C12","v":0},{"$f":"\"+ Subventions \"","v":"+ Subventions "},null,{"$f":"'3-Saisie des comptes passés'!G20","v":0},{"$f":"'3-Saisie des comptes passés'!H20","v":0},{"$f":"'4-Saisie comptes prévisionnels'!E12","v":0},{"$f":"'4-Saisie comptes prévisionnels'!F12","v":0}]
[null,{"$f":"\"+ Charges sociales\"","v":"+ Charges sociales"},{"$f":"'3-Saisie des comptes passés'!C21","v":0},{"$f":"'3-Saisie des comptes passés'!D21","v":0},{"$f":"'4-Saisie comptes prévisionnels'!B13","v":0},{"$f":"'4-Saisie comptes prévisionnels'!C13","v":0},{"$f":"\"+ Aides aux postes \"","v":"+ Aides aux postes "},null,{"$f":"'3-Saisie des comptes passés'!G21","v":0},{"$f":"'3-Saisie des comptes passés'!H21","v":0},{"$f":"'4-Saisie comptes prévisionnels'!E13","v":0},{"$f":"'4-Saisie comptes prévisionnels'!F13","v":0}]
[null,{"$f":"\"+ Dotations aux amortissements\"","v":"+ Dotations aux amortissements"},{"$f":"'3-Saisie des comptes passés'!C22","v":0},{"$f":"'3-Saisie des comptes passés'!D22","v":0},{"$f":"'4-Saisie comptes prévisionnels'!B14","v":0},{"$f":"'4-Saisie comptes prévisionnels'!C14","v":0},{"$f":"\"+ Reprise sur Amort. & Prov.\"","v":"+ Reprise sur Amort. & Prov."},null,{"$f":"'3-Saisie des comptes passés'!G22","v":0},{"$f":"'3-Saisie des comptes passés'!H22","v":0},{"$f":"'4-Saisie comptes prévisionnels'!E14","v":0},{"$f":"'4-Saisie comptes prévisionnels'!F14","v":0}]
[null,{"$f":"\"+ Autres charges d'exploitation\"","v":"+ Autres charges d'exploitation"},{"$f":"'3-Saisie des comptes passés'!C23","v":0},{"$f":"'3-Saisie des comptes passés'!D23","v":0},{"$f":"'4-Saisie comptes prévisionnels'!B15","v":0},{"$f":"'4-Saisie comptes prévisionnels'!C15","v":0},{"$f":"\"+ Autres produits\"","v":"+ Autres produits"},null,{"$f":"'3-Saisie des comptes passés'!G23","v":0},{"$f":"'3-Saisie des comptes passés'!H23","v":0},{"$f":"'4-Saisie comptes prévisionnels'!E15","v":0},{"$f":"'4-Saisie comptes prévisionnels'!F15","v":0}]
[null,{"$f":"\"+ Surcoût COVID19 \"","v":"+ Surcoût COVID19 "},null,null,{"$f":"'4-Saisie comptes prévisionnels'!B16","v":0},{"$f":"'4-Saisie comptes prévisionnels'!C16","v":0},{"$f":"\"+ Aides liées au COVID19 \"","v":"+ Aides liées au COVID19 "},null,null,null,{"$f":"'4-Saisie comptes prévisionnels'!E16","v":0},{"$f":"'4-Saisie comptes prévisionnels'!F16","v":0}]
[null,"Charges financières: ",{"$f":"'3-Saisie des comptes passés'!C25","v":0},{"$f":"'3-Saisie des comptes passés'!D25","v":0},{"$f":"'4-Saisie comptes prévisionnels'!B17","v":0},{"$f":"'4-Saisie comptes prévisionnels'!C17","v":0},"Produits financiers: ",null,{"$f":"'3-Saisie des comptes passés'!G25","v":0},{"$f":"'3-Saisie des comptes passés'!H25","v":0},{"$f":"'4-Saisie comptes prévisionnels'!E17","v":0},{"$f":"'4-Saisie comptes prévisionnels'!F17","v":0}]
[null,"Charges exceptionnelles: ",{"$f":"'3-Saisie des comptes passés'!C26","v":0},{"$f":"'3-Saisie des comptes passés'!D26","v":0},{"$f":"'4-Saisie comptes prévisionnels'!B18","v":0},{"$f":"'4-Saisie comptes prévisionnels'!C18","v":0},"Produits exceptionnels: ",null,{"$f":"'3-Saisie des comptes passés'!G26","v":0},{"$f":"'3-Saisie des comptes passés'!H26","v":0},{"$f":"'4-Saisie comptes prévisionnels'!E18","v":0},{"$f":"'4-Saisie comptes prévisionnels'!F18","v":0}]
[null,"dont VCEAC",{"$f":"'3-Saisie des comptes passés'!C27","v":0},{"$f":"'3-Saisie des comptes passés'!D27","v":0},{"$f":"'4-Saisie comptes prévisionnels'!B19","v":0},{"$f":"'4-Saisie comptes prévisionnels'!C19","v":0},"dont quote part de subvention virée au résultat",null,{"$f":"'3-Saisie des comptes passés'!G27","v":0},{"$f":"'3-Saisie des comptes passés'!H27","v":0},{"$f":"'4-Saisie comptes prévisionnels'!E19","v":0},{"$f":"'4-Saisie comptes prévisionnels'!F19","v":0}]
[null,"dont charges s/ex. antérieurs",{"$f":"'3-Saisie des comptes passés'!C28","v":0},{"$f":"'3-Saisie des comptes passés'!D28","v":0},{"$f":"'4-Saisie comptes prévisionnels'!B20","v":0},{"$f":"'4-Saisie comptes prévisionnels'!C20","v":0},"dont PCEA",null,{"$f":"'3-Saisie des comptes passés'!G28","v":0},{"$f":"'3-Saisie des comptes passés'!H28","v":0},{"$f":"'4-Saisie comptes prévisionnels'!E20","v":0},{"$f":"'4-Saisie comptes prévisionnels'!F20","v":0}]
[null,"Autres (impôts sociétés): ",{"$f":"'3-Saisie des comptes passés'!C29","v":0},{"$f":"'3-Saisie des comptes passés'!D29","v":0},{"$f":"'4-Saisie comptes prévisionnels'!B21","v":0},{"$f":"'4-Saisie comptes prévisionnels'!C21","v":0},"Autres (report des ressources): ",null,{"$f":"'3-Saisie des comptes passés'!G29","v":0},{"$f":"'3-Saisie des comptes passés'!H29","v":0},{"$f":"'4-Saisie comptes prévisionnels'!E21","v":0},{"$f":"'4-Saisie comptes prévisionnels'!F21","v":0}]
[]
[null,"Résultat d'exploitation",{"$f":"'3-Saisie des comptes passés'!C31","v":0},{"$f":"'3-Saisie des comptes passés'!D31","v":0},{"$f":"'4-Saisie comptes prévisionnels'!B23","v":0},{"$f":"'4-Saisie comptes prévisionnels'!C23","v":0}]
[null,"Résultat net",{"$f":"'3-Saisie des comptes passés'!C32","v":0},{"$f":"'3-Saisie des comptes passés'!D32","v":0},{"$f":"'4-Saisie comptes prévisionnels'!B24","v":0},{"$f":"'4-Saisie comptes prévisionnels'!C24","v":0}]
[null,"CAF",{"$f":"'3-Saisie des comptes passés'!C34","v":0},{"$f":"'3-Saisie des comptes passés'!D34","v":0},{"$f":"'4-Saisie comptes prévisionnels'!B26","v":0},{"$f":"'4-Saisie comptes prévisionnels'!C26","v":0}]
[]
[null,"Analyse du compte de résultat",null,null,{"$f":"D43","v":2020},{"$f":"E43","v":"2021"}]
[null,"Baisse significative des produits d'exploitation sur les 2 derniers exercices clos\n(< -25 % = très grave ;  < -15 % = grave ; < -5 % = préoccupant ; > 5 % = Ok)",null,null,{"$f":"('3-Saisie des comptes passés'!H18-'3-Saisie des comptes passés'!G18)/'3-Saisie des comptes passés'!G18","v":{"$error":"#DIV/0!"}},{"$f":"IF(F96=\"2021\",(('3-Saisie des comptes passés'!I18-'3-Saisie des comptes passés'!H18)/'3-Saisie des comptes passés'!H18),\"/\")","v":{"$error":"#DIV/0!"}}]
[null,"Evolution résultat d'exploitation d'une année sur l'autre",null,null,{"$f":"('3-Saisie des comptes passés'!D31-'3-Saisie des comptes passés'!C31)/'3-Saisie des comptes passés'!C31","v":{"$error":"#DIV/0!"}},{"$f":"IF(F96=\"2021\",(('3-Saisie des comptes passés'!E31-'3-Saisie des comptes passés'!D31)/'3-Saisie des comptes passés'!D31),\"/\")","v":{"$error":"#DIV/0!"}}]
[null,"Evolution résultat net d'une année sur l'autre",null,null,{"$f":"('3-Saisie des comptes passés'!D32-'3-Saisie des comptes passés'!C32)/'3-Saisie des comptes passés'!C32","v":{"$error":"#DIV/0!"}},{"$f":"IF(F96=\"2021\",(('3-Saisie des comptes passés'!E32-'3-Saisie des comptes passés'!D32)/'3-Saisie des comptes passés'!D32),\"/\")","v":{"$error":"#DIV/0!"}}]
[]
[null,"Ratios économiques",null,{"$f":"'3-Saisie des comptes passés'!G17","v":2019},{"$f":"'3-Saisie des comptes passés'!H17","v":2020},{"$f":"F96","v":"2021"}]
[null,"Part des recettes sur le total des produits d'exploitation",null,{"$f":"'3-Saisie des comptes passés'!G19/'3-Saisie des comptes passés'!G18","v":{"$error":"#DIV/0!"}},{"$f":"('3-Saisie des comptes passés'!H19/'3-Saisie des comptes passés'!H18)","v":{"$error":"#DIV/0!"}},{"$f":"IF(F96=\"2021\",('3-Saisie des comptes passés'!I19/'3-Saisie des comptes passés'!I18),\"/\")","v":{"$error":"#DIV/0!"}}]
[null,"Part des subventions sur le total des produits d'exploitation",null,{"$f":"'3-Saisie des comptes passés'!G20/'3-Saisie des comptes passés'!G18","v":{"$error":"#DIV/0!"}},{"$f":"('3-Saisie des comptes passés'!H20/'3-Saisie des comptes passés'!H18)","v":{"$error":"#DIV/0!"}},{"$f":"IF(F96=\"2021\",('3-Saisie des comptes passés'!I20/'3-Saisie des comptes passés'!I18),\"/\")","v":{"$error":"#DIV/0!"}}]
[null,"Part des aides aux postes sur le total des produits d'exploitation",null,{"$f":"'3-Saisie des comptes passés'!G21/'3-Saisie des comptes passés'!G18","v":{"$error":"#DIV/0!"}},{"$f":"('3-Saisie des comptes passés'!H21/'3-Saisie des comptes passés'!H18)","v":{"$error":"#DIV/0!"}},{"$f":"IF(F96=\"2021\",('3-Saisie des comptes passés'!I21/'3-Saisie des comptes passés'!I18),\"/\")","v":{"$error":"#DIV/0!"}}]
[null,"Part des aides à l'emploi sur le total de la masse salariale",null,{"$f":"'3-Saisie des comptes passés'!G21/('3-Saisie des comptes passés'!C20+'3-Saisie des comptes passés'!C21)","v":{"$error":"#DIV/0!"}},{"$f":"('3-Saisie des comptes passés'!H21/('3-Saisie des comptes passés'!D20+'3-Saisie des comptes passés'!D21))","v":{"$error":"#DIV/0!"}},{"$f":"IF(F96=\"2021\",('3-Saisie des comptes passés'!I21/('3-Saisie des comptes passés'!E20+'3-Saisie des comptes passés'!E21)),\"/\")","v":{"$error":"#DIV/0!"}}]
[null,"Poids de la masse salariale sur le total des charges d'exploitation",null,{"$f":"('3-Saisie des comptes passés'!C20+'3-Saisie des comptes passés'!C21)/'3-Saisie des comptes passés'!C18","v":{"$error":"#DIV/0!"}},{"$f":"(('3-Saisie des comptes passés'!D20+'3-Saisie des comptes passés'!D21)/'3-Saisie des comptes passés'!D18)","v":{"$error":"#DIV/0!"}},{"$f":"IF(F96=\"2021\",(('3-Saisie des comptes passés'!E20+'3-Saisie des comptes passés'!E21)/'3-Saisie des comptes passés'!E18),\"/\")","v":{"$error":"#DIV/0!"}}]
[null,"Délai moyen de recouvrement des créances clients (en nombre de jours)",null,{"$f":"(('3-Saisie des comptes passés'!C9/'3-Saisie des comptes passés'!G19)*365)","v":{"$error":"#DIV/0!"}},{"$f":"('3-Saisie des comptes passés'!D9/'3-Saisie des comptes passés'!H19)*365","v":{"$error":"#DIV/0!"}},{"$f":"IF(F96=\"2021\",(('3-Saisie des comptes passés'!E9/'3-Saisie des comptes passés'!I19)*365),\"/\")","v":{"$error":"#DIV/0!"}}]
[null,"Délai moyen de recouvrement des subventions (en nombre de jours)",null,{"$f":"('3-Saisie des comptes passés'!C10/'3-Saisie des comptes passés'!G20*365)","v":{"$error":"#DIV/0!"}},{"$f":"('3-Saisie des comptes passés'!D10/'3-Saisie des comptes passés'!H20*365)","v":{"$error":"#DIV/0!"}},{"$f":"IF(F96=\"2021\",('3-Saisie des comptes passés'!E10/'3-Saisie des comptes passés'!I20*365),\"/\")","v":{"$error":"#DIV/0!"}}]
[null,"Délai moyen de paiement des dettes d'exploitation (en nombre de jours)",null,{"$f":"('3-Saisie des comptes passés'!G10/'3-Saisie des comptes passés'!C18*365)","v":{"$error":"#DIV/0!"}},{"$f":"('3-Saisie des comptes passés'!H10/'3-Saisie des comptes passés'!D18*365)","v":{"$error":"#DIV/0!"}},{"$f":"IF(F96=\"2021\",('3-Saisie des comptes passés'!I10/'3-Saisie des comptes passés'!E18*365),\"/\")","v":{"$error":"#DIV/0!"}}]
[]
[]
[]
[]
[]
[]
[]
[]
[]
[]
[]
[]
[]
[null,"Analyse économique:"]
[]
[]
[]
[]
[]
[null,"Préconisations et prescriptions "]
[]
[]
[]
[]
[]
[null,"Mot de passe de la feuille  : FAA"]

{"sheet":"Liste FAA","index":9,"n_rows":98,"n_cols":6,"rows_kept":98,"cut":false,"hidden":true,"merged":[]}
[]
[null,"D - Risque avéré de rupture de trésorerie, situation qui semble déjà très compromise, avec peu de marges de manœuvre"]
[null,"C - L'entreprise paraît en risque de rupture de trésorerie courant 2020, il semble encore exister des leviers à activer"]
[null,"B - L'entreprise connaît des difficultés importantes avec la crise, mais ces risques ne semblent pas de nature à menacer sa poursuite d'activité"]
[null,"A - L'entreprise subit de faibles impacts de la crise, voire connaît un développement d'activité"]
[]
[null,"Activité totalement arrêtée"]
[null,"Activité réduite"]
[null,"Activité se poursuit à l'identique"]
[null,"Activité en croissance"]
[]
[null,"Equipe totalement à l'arrêt"]
[null,"Equipe réduite"]
[null,"Equipe maintenue à l'identique"]
[null,"Equipe en croissance"]
[]
[null,"Je suis en rupture de trésorerie depuis le début de la crise"]
[null,"Je viens d'être en rupture de trésorerie"]
[null,"Je ne suis pas en rupture de trésorerie mais je prévois d'y être dans moins d'1 mois"]
[null,"Je ne suis pas en rupture de trésorerie mais je prévois d'y être dans 1 à 3 mois"]
[null,"Je ne suis pas en rupture de trésorerie mais je prévois d'y être dans plus de 3 mois"]
[null,"Je pense ne pas avoir de risque de rupture de trésorerie cette année"]
[]
[null,"Fort"]
[null,"Moyen"]
[null,"Faible"]
[]
[null,"Bon"]
[null,"Moyen"]
[null,"Faible"]
[]
[]
[null,"OK"]
[null,"KO"]
[]
[null,"OUI"]
[null,"NON"]
[]
[null,"Création"]
[null,"Reprise"]
[null,"Développement"]
[null,"Rebond"]
[null,"Changement d'échelle"]
[]
[null,"Pas de réponse ou injoignable"]
[null,"Refus de soutien bancaire"]
[null,"Soutien bancaire obtenu mais insuffisant"]
[null,"Soutien bancaire obtenu et suffisant pour les 6 prochains mois"]
[null,"Bonne relation"]
[null,"Oui déjà avant la crise"]
[null,"Oui depuis la crise"]
[null,"Non pas encore"]
[null,"Non pas de risque à court terme"]
[]
[null,"Non"]
[null,"Oui, ponctuellement"]
[null,"Oui, souvent"]
[]
[null,"J'en avais déjà avant la crise"]
[null,"Dès le début de la crise"]
[null,"Durant la crise"]
[null,"Cela vient de commencer"]
[]
[null,"Très bon, je n'avais jamais de soucis de trésorerie"]
[null,"Bon : mes tensions de trésorerie étaient épisodiques et maîtrisées"]
[null,"Moyen : certaines périodes étaient difficiles à gérer "]
[null,"Mauvais : j'avais des problèmes de trésorerie permanents"]
[]
[]
[null,"inférieur à 5000€"]
[null,"entre 5 et 10000€"]
[null,"supérieur à 10000€"]
[]
[]
[null,null,{"$f":"'3-Saisie des comptes passés'!C17","v":2019},{"$f":"'3-Saisie des comptes passés'!D17","v":2020},{"$f":"'4-Saisie comptes prévisionnels'!B9","v":2021},{"$f":"'4-Saisie comptes prévisionnels'!C9","v":2022}]
[null,"Masse Salariale :",{"$f":"C77+C78","v":0},{"$f":"D77+D78","v":0},{"$f":"E77+E78","v":0},{"$f":"F77+F78","v":0}]
[null,{"$f":"\"=Salaires Bruts\"","v":"=Salaires Bruts"},{"$f":"'3-Saisie des comptes passés'!C20","v":0},{"$f":"'3-Saisie des comptes passés'!D20","v":0},{"$f":"'3-Saisie des comptes passés'!E20","v":0},{"$f":"'4-Saisie comptes prévisionnels'!C12","v":0}]
[null,{"$f":"\"+Charges Sociales\"","v":"+Charges Sociales"},{"$f":"'3-Saisie des comptes passés'!C21","v":0},{"$f":"'3-Saisie des comptes passés'!D21","v":0},{"$f":"'3-Saisie des comptes passés'!E21","v":0},{"$f":"'4-Saisie comptes prévisionnels'!C13","v":0}]
[]
[]
[null,"1 mois"]
[null,"2 mois"]
[]
[]
[null,"Prêt Garanti par l'Etat (PGE)"]
[null,"Prêt BPI"]
[null,"Prêt de Solidarité et de Proximité aux TPE/Asso"]
[null,"Fonds de Prêts aux Structures de l'ESS"]
[null,"Avance Remboursable"]
[null,"Prêts autres"]
[]
[null,"Oui l'association a déjà bénéficié d'un DLA"]
[null,"Oui l'association a commencé un accompagnement DLA"]
[null,"Non"]
[]
[null,"Oui l'association a déjà bénéficié d'un accompagnement CAP'AM ou d'un financement"]
[null,"Oui l'association a commencé un accompagnement CAP'AM ou une demande de financement"]
[null,"Non"]